bitfinex/quotes_ETHUSD_20250929
["timestamp","ask_amount","ask_price","bid_price","bid_amount"]
[1759176605465,3.0,4202.1,4201.6,0.1204]
[1759176605644,3.0,4202.1,4201.7,3.07457693]
[1759176605845,3.0,4202.1,4201.8,0.6946]
[1759176606045,3.0,4202.1,4201.9,0.6946]
[1759176606247,3.0,4202.1,4202.0,0.6946]
[1759176606761,0.1184,4202.3,4202.0,0.6946]
[1759176606960,2.37959261,4202.4,4201.6,0.002]
[1759176607164,2.37977828,4202.1,4201.8,0.1184]
[1759176607365,5.37976249,4202.1,4201.8,0.1184]
[1759176607551,2.37986008,4202.0,4201.8,0.1184]
[1759176607761,3.0,4201.8,4201.6,0.002]
[1759176607965,0.51375926,4202.3,4201.6,0.4547]
[1759176608149,8.13970756,4202.2,4201.6,0.2439]
[1759176608349,2.37981043,4202.1,4201.6,0.2439]
[1759176608538,8.13972202,4202.2,4201.6,0.2439]
[1759176608740,8.13971616,4202.2,4201.7,0.6946]
[1759176609460,2.37978309,4202.1,4201.7,0.6946]
[1759176609671,3.0,4202.0,4201.7,0.6946]
[1759176610045,3.94471499,4203.1,4201.8,0.7025]
[1759176610272,2.37958707,4202.5,4201.9,0.7025]
[1759176610467,3.0,4202.3,4201.9,0.7025]
[1759176610773,3.0,4202.3,4202.0,0.7025]
[1759176611870,2.759,4202.4,4202.0,0.7025]
[1759176612035,2.758,4202.4,4202.1,0.7025]
[1759176612237,2.758,4202.4,4202.2,0.7025]
[1759176612441,2.3791963,4203.1,4202.3,9.96522803]
[1759176612637,0.001,4203.6,4202.6,6.88310905]
[1759176612837,2.3790265,4203.4,4202.6,6.88310905]
[1759176613039,2.3790265,4203.4,4202.4,0.7025]
[1759176613040,2.3790831,4203.3,4202.4,0.4698]
[1759176613343,2.379267,4203.0,4202.4,0.4698]
[1759176614270,0.792,4203.0,4201.9,0.4698]
[1759176614455,3.792,4202.8,4201.7,0.2327]
[1759176614660,2.37970436,4202.3,4201.6,0.002]
[1759176614856,3.792,4202.4,4201.6,0.002]
[1759176615163,2.37976249,4202.1,4201.6,0.002]
[1759176615334,5.37959261,4202.4,4201.6,0.002]
[1759176615335,2.759,4202.3,4201.6,0.002]
[1759176615540,2.3797681,4202.1,4201.6,0.002]
[1759176615740,2.3797203,4202.2,4201.6,0.002]
[1759176615940,2.3797203,4202.2,4201.7,0.7025]
[1759176616442,2.37988542,4201.9,4201.6,0.002]
[1759176616868,2.759,4202.3,4201.6,0.002]
[1759176617057,2.37972457,4202.2,4201.6,0.002]
[1759176617566,2.37975453,4202.2,4201.6,0.002]
[1759176617776,2.37975453,4202.2,4201.8,0.1184]
[1759176619139,2.759,4202.3,4201.9,0.2414]
[1759176619338,2.759,4202.3,4201.9,0.7031]
[1759176619571,4.191,4203.5,4202.2,6.88310905]
[1759176619774,0.792,4202.9,4201.8,2.758]
[1759176619982,5.769,4202.8,4201.8,2.758]
[1759176620207,2.37946216,4202.7,4201.9,3.082973]
[1759176620409,3.0,4202.7,4202.0,2.37981872]
[1759176620573,3.0,4202.7,4201.9,0.7031]
[1759176620772,5.37946107,4202.7,4202.0,0.2414]
[1759176620974,3.0,4202.7,4202.0,2.62120895]
[1759176621209,2.37943659,4202.7,4202.1,0.7031]
[1759176621418,5.14837896,4202.8,4202.1,0.7031]
[1759176621583,2.37952302,4202.6,4201.9,6.88310905]
[1759176621986,2.3796471,4202.4,4201.6,0.002]
[1759176622317,2.37964923,4202.3,4201.6,2.38204088]
[1759176622611,3.0,4202.4,4201.7,0.7031]
[1759176622806,3.0,4202.4,4201.6,0.002]
[1759176622807,2.37977201,4202.1,4201.6,0.002]
[1759176623015,3.1315,4202.4,4201.6,0.002]
[1759176623171,2.37977984,4202.1,4201.6,0.4637]
[1759176623513,3.72165,4202.4,4201.6,0.4637]
[1759176623514,2.37969705,4202.3,4201.6,0.4637]
[1759176623696,2.37972177,4202.2,4201.6,0.002]
[1759176623904,2.37972177,4202.2,4201.7,0.7031]
[1759176624072,3.0,4202.4,4201.8,0.7031]
[1759176624419,2.37970702,4202.2,4201.8,0.7031]
[1759176624576,3.0,4202.4,4201.8,0.2414]
[1759176624770,0.1315,4202.3,4201.6,0.002]
[1759176625072,2.37998905,4201.7,4201.6,0.002]
[1759176625410,2.3799305,4201.9,4201.6,0.002]
[1759176625585,0.001,4202.7,4201.6,7.58820905]
[1759176625904,2.3795246,4202.6,4202.0,6.88310905]
[1759176626507,5.38043584,4202.7,4202.0,6.88310905]
[1759176627008,2.771,4202.7,4202.1,0.7031]
[1759176627176,2.771,4202.7,4201.6,0.002]
[1759176627177,3.0,4202.6,4201.7,7.58620905]
[1759176627502,5.37948522,4202.6,4201.8,2.37992474]
[1759176628102,2.37954026,4202.5,4201.7,7.58620905]
[1759176628404,3.0,4202.6,4201.7,7.58620905]
[1759176628611,5.37949454,4202.6,4201.7,7.58620905]
[1759176628909,3.0,4202.6,4201.8,0.7031]
[1759176629122,2.37958204,4202.5,4201.8,0.7031]
[1759176629422,5.14958204,4202.5,4201.8,0.7031]
[1759176629589,5.37959909,4202.4,4202.1,0.1184]
[1759176629786,3.0,4202.4,4202.1,0.1184]
[1759176630391,5.37961089,4202.4,4202.1,0.1184]
[1759176630913,3.0,4202.4,4202.1,0.1184]
[1759176631093,2.37966069,4202.3,4202.1,0.1184]
[1759176631295,0.001,4202.7,4202.1,0.1184]
[1759176631589,0.001,4202.7,4202.1,3.08285747]
[1759176631790,0.001,4202.7,4202.3,2.37964923]
[1759176632016,0.001,4202.7,4202.2,7.4327948]
[1759176632224,0.001,4202.7,4202.3,0.4617]
[1759176632408,0.001,4202.7,4202.2,0.7031]
[1759176632616,0.001,4202.7,4202.4,2.37955058]
[1759176632822,0.001,4202.7,4202.4,2.37957123]
[1759176633030,0.001,4202.7,4202.4,0.7031]
[1759176633609,0.001,4202.7,4202.4,0.2414]
[1759176633809,0.001,4202.7,4202.5,0.4617]
[1759176635000,0.001,4202.7,4202.1,3.08281653]
[1759176635430,0.001,4202.7,4202.2,2.3796869]
[1759176636000,0.001,4202.7,4202.2,3.0827869]
[1759176636207,0.001,4202.7,4202.3,0.2414]
[1759176636404,0.001,4202.7,4202.3,0.7031]
[1759176636600,0.001,4202.7,4202.4,2.37958711]
[1759176636942,0.001,4202.7,4202.6,2.37947936]
[1759176637302,0.001,4202.7,4202.6,3.10637415]
[1759176639440,0.001,4202.7,4202.6,5.87837415]
[1759176639638,0.001,4202.7,4202.6,5.85457936]
[1759176639810,0.001,4202.7,4202.6,6.67799601]
[1759176641436,0.001,4202.7,4202.6,6.79639601]
[1759176644826,0.001,4202.7,4202.6,6.09329601]
[1759176645036,0.001,4202.7,4202.6,6.79039601]
[1759176646343,0.001,4202.7,4202.6,3.94191665]
[1759176646646,0.001,4202.7,4202.6,5.96697936]
[1759176650131,0.001,4202.7,4202.6,3.5875]
[1759176650442,0.001,4202.7,4202.6,5.95897936]
[1759176651013,0.001,4202.7,4202.6,3.19497936]
[1759176651214,0.001,4202.7,4202.6,3.21877415]
[1759176651437,0.001,4202.7,4202.6,6.54260013]
[1759176651649,0.001,4202.7,4202.6,6.51880534]
[1759176651950,0.001,4202.7,4202.6,1.37532598]
[1759176652119,0.001,4202.7,4202.6,5.95797936]
[1759176653724,0.001,4202.7,4202.6,2.8814]
[1759176654058,2.37951817,4202.6,4201.6,0.002]
[1759176654263,2.763,4202.7,4201.8,6.87957131]
[1759176654469,0.001,4202.7,4202.4,0.1184]
[1759176655438,2.38042843,4202.7,4202.4,0.1184]
[1759176655637,2.37948173,4202.6,4202.4,0.1184]
[1759176655842,2.51194201,4202.7,4202.4,0.1184]
[1759176656453,2.3794829,4202.6,4202.4,0.1184]
[1759176656661,0.1325,4202.7,4202.4,0.1184]
[1759176656957,0.1325,4202.7,4201.8,2.762]
[1759176656958,2.37953599,4202.5,4201.8,2.762]
[1759176657264,2.51103599,4202.5,4202.2,0.1184]
[1759176657804,2.37960862,4202.4,4202.2,0.1184]
[1759176657939,2.762,4202.3,4201.6,0.002]
[1759176658147,2.37971995,4202.2,4201.8,0.1184]
[1759176658465,2.51121995,4202.2,4201.8,0.1184]
[1759176658759,5.14166547,4202.3,4201.8,0.1184]
[1759176659542,2.37972103,4202.2,4201.8,0.1184]
[1759176660370,2.37971093,4202.2,4201.8,0.1184]
[1759176660554,5.14071093,4202.2,4201.8,0.1184]
[1759176660872,2.37986823,4202.0,4201.8,0.1184]
[1759176661166,0.001,4202.7,4201.9,0.72089875]
[1759176661373,2.761,4202.6,4202.3,6.87957131]
[1759176661581,2.761,4202.6,4202.3,0.2281]
[1759176661759,2.761,4202.6,4202.2,0.1184]
[1759176661958,2.761,4202.6,4202.2,0.3465]
[1759176662157,0.001,4202.7,4202.3,7.6004678]
[1759176662480,0.001,4202.7,4202.6,9.25905067]
[1759176662783,0.001,4202.7,4202.6,6.87957131]
[1759176663082,0.001,4202.7,4202.6,9.95615067]
[1759176664680,0.001,4202.7,4202.6,0.8155]
[1759176664861,0.001,4202.7,4202.6,7.69507131]
[1759176665062,0.001,4202.7,4202.6,1.86100713]
[1759176665386,0.001,4202.7,4202.6,0.1184]
[1759176666183,0.001,4202.7,4202.6,2.49787936]
[1759176666383,0.001,4202.7,4202.6,3.19497936]
[1759176667451,0.001,4202.7,4202.6,0.8155]
[1759176667651,0.001,4202.7,4202.6,0.1184]
[1759176668282,0.1325,4202.7,4202.6,0.1184]
[1759176668957,0.001,4202.7,4202.6,0.1184]
[1759176670069,2.37947936,4202.6,4201.7,2.763]
[1759176670397,5.27493208,4202.7,4202.2,0.1184]
[1759176670580,2.8955,4202.7,4202.2,0.1184]
[1759176670760,5.27494189,4202.7,4202.2,0.1184]
[1759176671159,2.8955,4202.7,4202.2,0.1184]
[1759176671392,2.764,4202.7,4202.2,0.1184]
[1759176671558,2.37958109,4202.5,4202.2,0.1184]
[1759176671964,0.1315,4202.4,4202.2,0.1184]
[1759176672883,2.51111186,4202.4,4202.2,0.1184]
[1759176673098,5.14347036,4202.7,4202.2,0.1184]
[1759176673567,2.38045786,4202.7,4202.2,0.1184]
[1759176673767,5.14149643,4202.6,4202.2,0.1184]
[1759176673962,2.38046711,4202.7,4202.2,0.1184]
[1759176674167,2.761,4202.6,4202.2,0.1184]
[1759176675276,5.14049194,4202.6,4202.2,0.1184]
[1759176675479,5.14048985,4202.6,4202.2,0.1184]
[1759176675679,2.51106724,4202.5,4202.2,0.1184]
[1759176675863,0.1325,4202.5,4202.2,0.1184]
[1759176676069,0.1315,4202.5,4202.2,0.1184]
[1759176676396,2.37961465,4202.4,4202.2,0.1184]
[1759176676595,0.1315,4202.5,4202.2,0.1184]
[1759176677003,2.37959282,4202.4,4202.2,0.1184]
[1759176677198,0.1315,4202.5,4202.2,0.1184]
[1759176677402,2.37964923,4202.3,4202.2,0.1184]
[1759176677603,2.37970586,4202.2,4201.8,0.1184]
[1759176677788,5.27020586,4202.2,4201.8,0.1184]
[1759176677973,2.759,4202.2,4201.8,0.5838]
[1759176678174,2.759,4202.2,4201.8,0.1184]
[1759176679005,2.51110853,4202.4,4201.8,0.1184]
[1759176679006,2.759,4202.1,4201.8,0.1184]
[1759176680708,2.759,4202.2,4201.8,2.84532933]
[1759176680910,2.759,4202.2,4202.0,0.1184]
[1759176684023,0.001,4202.7,4202.0,0.5838]
[1759176684232,2.757,4202.6,4202.0,0.5838]
[1759176684523,3.0,4202.5,4202.0,2.96360613]
[1759176684717,3.0,4202.5,4202.0,3.21080613]
[1759176684919,3.0,4202.5,4202.0,2.49820613]
[1759176685224,2.757,4202.4,4202.1,3.11615781]
[1759176685384,2.756,4202.5,4202.2,0.7126]
[1759176687523,3.0,4202.4,4202.0,0.1184]
[1759176687725,3.0,4202.4,4202.0,0.5838]
[1759176688089,3.0,4202.4,4202.0,3.21081902]
[1759176688422,3.0,4202.4,4202.1,0.7126]
[1759176690200,3.001,4202.4,4202.1,0.7126]
[1759176690787,3.001,4202.4,4202.1,0.4654]
[1759176691419,3.001,4202.4,4202.1,0.7126]
[1759176693121,3.001,4202.4,4202.1,0.4654]
[1759176693785,2.37971707,4202.2,4202.0,0.1184]
[1759176693986,2.37969935,4202.3,4202.0,0.1184]
[1759176694432,2.37970723,4202.2,4202.0,0.1184]
[1759176694726,1.18313017,4202.2,4201.6,0.002]
[1759176694892,5.13477335,4202.1,4201.8,0.1184]
[1759176695092,5.26627335,4202.1,4201.8,0.1184]
[1759176695510,2.755,4202.1,4201.8,0.1184]
[1759176695713,5.13477669,4202.1,4201.8,0.1184]
[1759176695915,2.37983535,4202.0,4201.8,0.1184]
[1759176696307,5.13478277,4202.1,4201.8,0.1184]
[1759176696825,2.37981916,4202.0,4201.8,0.1184]
[1759176697014,5.13477634,4202.1,4201.8,0.1184]
[1759176697311,2.755,4202.1,4201.8,0.1184]
[1759176697707,5.1347824,4202.1,4201.8,0.1184]
[1759176697909,2.37987577,4201.9,4201.8,0.1184]
[1759176698307,2.37983744,4202.0,4201.8,0.1184]
[1759176698912,2.37987577,4201.9,4201.8,0.1184]
[1759176699510,5.13487577,4201.9,4201.8,0.1184]
[1759176699722,2.37998905,4201.7,4201.6,0.002]
[1759176699931,5.13498905,4201.7,4201.6,0.002]
[1759176700221,5.26648905,4201.7,4201.6,0.002]
[1759176700425,5.26748905,4201.7,4201.6,0.002]
[1759176700731,6.11921206,4201.7,4201.6,0.002]
[1759176701310,9.11821206,4201.7,4201.6,0.002]
[1759176703228,5.755,4201.7,4201.6,0.6778]
[1759176703930,8.13498905,4201.7,4201.6,0.6778]
[1759176704500,8.13498905,4201.7,4201.6,0.447]
[1759176704730,5.755,4201.7,4201.6,0.447]
[1759176704910,8.13498905,4201.7,4201.6,0.447]
[1759176705226,5.37998905,4201.7,4201.6,0.447]
[1759176705931,3.0,4201.7,4201.6,0.447]
[1759176706134,3.0,4201.7,4201.6,0.6778]
[1759176706735,5.37998905,4201.7,4201.6,0.6778]
[1759176707124,5.37998905,4201.7,4201.6,0.002]
[1759176709512,6.56397596,4201.7,4201.6,0.002]
[1759176709712,6.56297596,4201.7,4201.6,0.002]
[1759176710728,6.43147596,4201.7,4201.6,0.002]
[1759176712436,7.35597596,4201.7,4201.6,0.002]
[1759176715216,9.86397596,4201.7,4201.6,0.002]
[1759176715415,7.35497596,4201.7,4201.6,0.002]
[1759176716642,7.45045902,4201.7,4201.6,0.002]
[1759176717147,7.45145902,4201.7,4201.6,0.002]
[1759176717344,8.88145902,4201.7,4201.6,0.002]
[1759176717545,11.39145902,4201.7,4201.6,0.002]
[1759176720140,8.74995902,4201.7,4201.6,0.002]
[1759176720336,11.50495902,4201.7,4201.6,0.002]
[1759176720655,8.74995902,4201.7,4201.6,0.002]
[1759176720826,11.50495902,4201.7,4201.6,0.002]
[1759176721757,11.63645902,4201.7,4201.6,0.002]
[1759176722546,11.50495902,4201.7,4201.6,0.002]
[1759176726340,18.39243959,4201.7,4201.6,0.002]
[1759176728229,18.52393959,4201.7,4201.6,0.002]
[1759176728430,21.03293959,4201.7,4201.6,0.002]
[1759176728630,27.92142016,4201.7,4201.6,0.002]
[1759176728859,1.431,4201.2,4201.1,0.002]
[1759176729048,19.75475287,4201.2,4201.1,0.002]
[1759176729260,19.88725287,4201.2,4201.1,0.002]
[1759176729459,20.56305287,4201.2,4201.1,0.002]
[1759176729865,20.56205287,4201.2,4201.1,0.002]
[1759176730177,21.40760572,4201.2,4201.1,0.002]
[1759176730884,11.87962515,4201.2,4201.1,0.002]
[1759176731173,8.33262515,4201.2,4201.1,0.7025]
[1759176731375,11.08762515,4201.2,4201.1,0.7025]
[1759176731578,6.0560723,4201.2,4201.1,0.7025]
[1759176731869,9.0456723,4201.2,4201.1,0.7025]
[1759176732247,8.2536723,4201.2,4201.1,0.7025]
[1759176732456,9.0456723,4201.2,4201.1,0.7025]
[1759176734081,6.2906723,4201.2,4201.1,0.7025]
[1759176734245,9.0456723,4201.2,4201.1,0.7025]
[1759176735649,6.2906723,4201.2,4201.1,0.7025]
[1759176735849,9.0456723,4201.2,4201.1,0.7025]
[1759176737349,3.0,4201.2,4201.1,0.7025]
[1759176737682,2.755,4201.6,4201.1,7.70838057]
[1759176737986,0.001,4201.7,4201.4,0.1184]
[1759176738192,2.756,4201.7,4201.4,0.1184]
[1759176738478,0.001,4201.7,4201.5,0.6885]
[1759176738681,0.001,4201.7,4201.6,0.6885]
[1759176741292,0.001,4201.7,4201.6,7.57598057]
[1759176741456,0.001,4201.7,4201.6,10.83440448]
[1759176742359,0.001,4201.7,4201.6,8.45435879]
[1759176742559,0.001,4201.7,4201.6,10.83440448]
[1759176746055,0.001,4201.7,4201.6,13.58840448]
[1759176747262,0.001,4201.7,4201.6,4.32087822]
[1759176747463,0.001,4201.7,4201.6,0.4626]
[1759176747685,0.001,4201.7,4201.6,0.6885]
[1759176749792,0.001,4201.7,4201.6,9.95602626]
[1759176751497,0.001,4201.7,4201.6,7.57598057]
[1759176752219,0.001,4201.7,4201.6,9.95602626]
[1759176752369,0.001,4201.7,4201.6,11.18965044]
[1759176753776,0.001,4201.7,4201.6,8.80960475]
[1759176754586,0.001,4201.7,4201.6,4.30216987]
[1759176755383,0.001,4201.7,4201.6,4.32597032]
[1759176756572,0.001,4201.7,4201.6,4.30216987]
[1759176757196,0.001,4201.7,4201.6,4.32597032]
[1759176757404,0.001,4201.7,4201.6,4.42056987]
[1759176757996,0.001,4201.7,4201.6,4.44437032]
[1759176758680,0.001,4201.7,4201.6,11.33185089]
[1759176758883,0.001,4201.7,4201.6,11.30805044]
[1759176759204,0.001,4201.7,4201.6,4.42056987]
[1759176759609,0.001,4201.7,4201.6,4.44437032]
[1759176762277,0.001,4201.7,4201.6,4.42056987]
[1759176764073,0.001,4201.7,4201.6,4.44437032]
[1759176764502,0.001,4201.7,4201.6,4.42056987]
[1759176764896,0.001,4201.7,4201.6,4.44437032]
[1759176766934,0.001,4201.7,4201.6,4.42056987]
[1759176767418,0.001,4201.7,4201.6,4.44437032]
[1759176767808,0.001,4201.7,4201.6,4.42056987]
[1759176770627,0.001,4201.7,4201.6,11.33185089]
[1759176770818,0.001,4201.7,4201.6,11.30805044]
[1759176772028,0.001,4201.7,4201.6,1.35202418]
[1759176772241,0.001,4201.7,4201.6,0.1184]
[1759176772532,0.1325,4201.7,4201.6,2.49844569]
[1759176772890,0.001,4201.7,4201.6,0.1184]
[1759176773112,0.1325,4201.7,4201.6,0.1184]
[1759176773597,0.001,4201.7,4201.6,0.1184]
[1759176774250,0.001,4201.7,4201.6,2.49844569]
[1759176774829,0.001,4201.7,4201.6,2.52224614]
[1759176775145,0.001,4201.7,4201.6,2.49844569]
[1759176776609,0.001,4201.7,4201.6,3.18524569]
[1759176777648,0.001,4201.7,4201.6,2.73214569]
[1759176777838,0.001,4201.7,4201.6,2.49844569]
[1759176779868,0.001,4201.7,4201.6,2.52224614]
[1759176780040,0.001,4201.7,4201.6,2.75594614]
[1759176780237,0.001,4201.7,4201.6,11.61949249]
[1759176780449,0.001,4201.7,4201.6,11.59569204]
[1759176780867,0.001,4201.7,4201.6,4.70821147]
[1759176781378,0.001,4201.7,4201.6,4.73201192]
[1759176781554,0.001,4201.7,4201.6,11.61949249]
[1759176781722,0.001,4201.7,4201.6,11.59569204]
[1759176782233,0.001,4201.7,4201.6,18.48317261]
[1759176788259,0.001,4201.7,4201.6,12.80394649]
[1759176788568,0.001,4201.7,4201.6,16.59594649]
[1759176790066,0.001,4202.1,4202.0,2.37981913]
[1759176790253,0.001,4202.1,4202.0,13.70152532]
[1759176790447,0.001,4202.1,4202.0,14.50192532]
[1759176792056,0.001,4202.1,4202.0,17.38352532]
[1759176792273,0.001,4202.2,4202.1,5.37976249]
[1759176792467,0.001,4202.2,4202.1,6.06176249]
[1759176792665,0.001,4202.2,4202.1,8.28562182]
[1759176798655,0.001,4202.2,4202.1,8.38103472]
[1759176802061,0.001,4202.2,4202.1,8.49943472]
[1759176803180,0.001,4202.2,4202.1,11.24743472]
[1759176804705,0.001,4202.7,4202.2,3.17170586]
[1759176804902,0.001,4202.7,4202.6,11.09573502]
[1759176805102,0.001,4202.7,4202.6,13.96213502]
[1759176805400,0.001,4202.7,4202.6,17.02491438]
[1759176806681,0.001,4202.9,4202.8,2.37936613]
[1759176806879,0.001,4202.9,4202.8,6.76873191]
[1759176807207,0.001,4202.9,4202.8,7.45203191]
[1759176807615,0.001,4202.9,4202.8,6.76873191]
[1759176809185,0.001,4203.1,4203.0,2.37925291]
[1759176809399,0.001,4203.1,4203.0,13.22298793]
[1759176809702,0.001,4203.1,4203.0,13.6989591]
[1759176810291,0.001,4203.1,4203.0,13.6979591]
[1759176811591,0.1325,4203.1,4203.0,13.6979591]
[1759176812213,0.1335,4203.1,4203.0,5.12625291]
[1759176813684,0.001,4203.1,4203.0,5.12625291]
[1759176814021,0.1335,4203.1,4203.0,5.12625291]
[1759176816416,0.1335,4203.1,4203.0,2.37925291]
[1759176816581,0.1335,4203.1,4203.0,5.12625291]
[1759176817291,0.1325,4203.1,4203.0,5.12625291]
[1759176817686,0.1335,4203.1,4203.0,5.12625291]
[1759176820221,0.1325,4203.1,4203.0,5.12625291]
[1759176820907,0.001,4203.1,4203.0,2.747]
[1759176821109,0.001,4203.1,4203.0,5.12625291]
[1759176821295,0.1325,4203.1,4203.0,5.12625291]
[1759176822201,0.1335,4203.1,4203.0,5.12625291]
[1759176823726,0.1335,4203.1,4203.0,2.8654]
[1759176824303,0.1335,4203.1,4203.0,5.24465291]
[1759176824529,0.1335,4203.1,4203.0,2.8654]
[1759176825236,0.1325,4203.1,4203.0,5.24465291]
[1759176825800,0.1325,4203.1,4203.0,2.8654]
[1759176826126,0.1325,4203.1,4203.0,5.24465291]
[1759176826333,0.001,4203.1,4203.0,0.1184]
[1759176826505,0.1335,4203.1,4202.8,0.1184]
[1759176826712,0.001,4203.0,4202.8,0.1184]
[1759176826938,0.38377192,4202.9,4202.8,0.1184]
[1759176827835,0.1325,4202.9,4202.8,0.1184]
[1759176829519,0.1315,4202.9,4202.8,0.1184]
[1759176831456,0.1315,4202.9,4202.8,0.1204]
[1759176832068,0.001,4203.1,4202.8,0.1204]
[1759176833427,0.1315,4203.0,4202.8,0.1204]
[1759176833626,0.1315,4202.9,4202.8,0.1204]
[1759176834054,0.001,4203.1,4202.8,0.1204]
[1759176834374,0.99956097,4203.1,4202.8,0.1204]
[1759176834545,0.001,4203.1,4202.8,0.1204]
[1759176834732,0.001,4203.1,4202.9,0.1184]
[1759176837954,0.001,4203.1,4202.9,0.1184]
[1759176839136,2.38023195,4203.1,4202.9,0.1184]
[1759176839444,0.001,4203.1,4202.9,0.1184]
[1759176839972,2.5117062,4203.1,4202.9,0.1184]
[1759176840175,0.1325,4203.1,4202.9,0.1184]
[1759176840745,0.001,4203.1,4202.9,0.1184]
[1759176846463,0.001,4203.1,4203.0,0.683]
[1759176850803,0.001,4203.1,4203.0,0.4418]
[1759176852276,0.001,4203.1,4202.9,0.1184]
[1759176852688,0.001,4203.1,4202.9,1.80176216]
[1759176852891,0.001,4203.1,4203.0,5.83375291]
[1759176862903,0.001,4203.1,4203.0,5.95215291]
[1759176867019,0.001,4203.1,4203.0,8.95215291]
[1759176868414,0.001,4203.6,4203.5,2.3789699]
[1759176868581,0.001,4203.6,4203.5,12.23762913]
[1759176868784,0.001,4203.6,4203.5,12.99232913]
[1759176878527,0.001,4203.6,4203.5,12.87392913]
[1759176881422,0.001,4203.6,4203.5,12.18762913]
[1759176883017,0.001,4203.6,4203.5,12.84992913]
[1759176883419,0.001,4203.6,4203.5,12.61872913]
[1759176883850,0.001,4203.6,4203.5,12.62072913]
[1759176884350,0.001,4203.6,4203.5,12.18962913]
[1759176884650,0.001,4203.6,4203.5,11.94973214]
[1759176884950,0.1325,4203.6,4203.5,11.94973214]
[1759176885248,0.001,4203.6,4203.5,5.0709699]
[1759176885415,0.1325,4203.6,4203.5,11.94973214]
[1759176887036,0.001,4203.6,4203.5,11.94973214]
[1759176888558,0.001,4203.6,4203.5,12.06813214]
[1759176889655,0.001,4203.6,4203.5,12.73043214]
[1759176889821,0.001,4203.6,4203.5,14.24137964]
[1759176892256,0.001,4203.6,4203.5,13.57907964]
[1759176892626,0.001,4203.6,4203.5,14.01017964]
[1759176893358,0.001,4203.6,4203.5,14.24137964]
[1759176895767,0.001,4203.6,4203.5,13.57907964]
[1759176895966,0.001,4203.6,4203.5,14.24137964]
[1759176896952,0.001,4203.6,4203.5,13.57907964]
[1759176897339,0.001,4203.6,4203.5,14.24137964]
[1759176898367,0.001,4203.6,4203.5,13.57907964]
[1759176898954,0.001,4203.6,4203.5,14.01017964]
[1759176899359,0.001,4203.6,4203.5,10.83907964]
[1759176899552,0.001,4203.6,4203.5,13.57707964]
[1759176900473,0.001,4203.6,4203.5,14.23937964]
[1759176901841,0.001,4203.6,4203.5,13.57707964]
[1759176903862,0.001,4203.6,4203.5,14.23937964]
[1759176904274,0.001,4203.6,4203.5,13.57707964]
[1759176911166,0.001,4203.6,4203.5,14.26157964]
[1759176912392,0.001,4203.6,4203.5,15.47410917]
[1759176913510,0.001,4203.6,4203.5,15.02000917]
[1759176913686,0.001,4203.6,4203.5,15.47410917]
[1759176918911,0.001,4203.6,4203.5,14.78960917]
[1759176919416,0.001,4203.6,4203.5,6.6983174]
[1759176919706,0.001,4203.6,4203.5,2.8564]
[1759176919905,0.1325,4203.6,4203.5,5.2353699]
[1759176920108,0.001,4203.6,4203.5,5.2353699]
[1759176920899,0.001,4203.6,4203.5,13.32666167]
[1759176921110,0.001,4203.6,4203.5,14.02786167]
[1759176921309,0.001,4203.6,4203.5,15.66855605]
[1759176922888,0.001,4203.6,4203.5,14.96735605]
[1759176923097,0.001,4203.6,4203.5,15.66855605]
[1759176925382,0.001,4203.6,4203.5,6.87606428]
[1759176926386,0.001,4203.6,4203.5,7.12176428]
[1759176926588,0.001,4203.6,4203.5,7.57726428]
[1759176929323,0.001,4203.6,4203.5,10.57726428]
[1759176929616,0.001,4203.6,4203.5,10.70876428]
[1759176931196,0.001,4203.6,4203.5,7.97276428]
[1759176931390,0.001,4203.6,4203.5,10.70776428]
[1759176940603,0.001,4203.6,4203.5,7.97276428]
[1759176940803,0.001,4203.6,4203.5,10.70676428]
[1759176946326,0.001,4203.6,4203.5,11.49876428]
[1759176953543,0.001,4203.6,4203.5,18.09485605]
[1759176953843,0.001,4203.6,4203.5,18.79625605]
[1759176958163,0.001,4203.6,4203.5,18.54885605]
[1759176958372,0.001,4203.6,4203.5,18.09485605]
[1759176958743,0.001,4203.6,4203.5,18.79625605]
[1759176961671,0.001,4203.6,4203.5,18.79525605]
[1759176962874,0.001,4203.6,4203.5,18.09385605]
[1759176964576,0.001,4203.6,4203.5,18.79525605]
[1759176964939,0.001,4203.6,4203.5,18.66375605]
[1759176973493,0.001,4203.6,4203.5,18.79625605]
[1759176974484,0.001,4203.6,4203.5,17.57786482]
[1759176978394,0.001,4203.6,4203.5,16.87646482]
[1759176978599,0.001,4203.6,4203.5,17.55086482]
[1759176980363,0.001,4204.1,4204.0,2.37868696]
[1759176980594,0.001,4204.1,4204.0,15.66064306]
[1759176980823,0.001,4204.1,4204.0,16.3112562]
[1759176981297,0.001,4204.1,4204.0,23.18415674]
[1759176981998,0.001,4204.1,4204.0,23.6629903]
[1759176983474,0.001,4204.1,4204.0,16.79008976]
[1759176985410,0.001,4204.1,4204.0,16.92158976]
[1759176986815,0.001,4204.1,4204.0,23.7944903]
[1759176989885,0.001,4204.1,4204.0,16.24718976]
[1759176991488,0.1325,4204.1,4204.0,16.24718976]
[1759176991715,0.1325,4204.1,4204.0,16.11568976]
[1759176992523,0.001,4204.1,4204.0,16.11568976]
[1759176992729,0.1325,4204.1,4204.0,16.11568976]
[1759176993023,0.001,4204.1,4204.0,16.11568976]
[1759176998356,0.1325,4204.1,4204.0,16.11568976]